fUSD/lending_fUSD_20240917
["ID","MTS","AMOUNT","RATE_DAILY","PERIOD"]
[338401897,1726587032114,-534.62190608,0.00013,2]
[338401899,1726587032126,-3255.09037,0.00013,2]
[338401902,1726587032140,-849.36959246,0.00013,2]
[338401933,1726587037684,-2148.0,0.000127,5]
[338401934,1726587037695,-500.0,0.00012973,2]
[338401935,1726587037704,-5258.39553078,0.00013,2]
[338401936,1726587037716,-45874.83109732,0.00013,2]
[338401937,1726587037727,-8976.90286343,0.00013,2]
[338401938,1726587037823,-135438.68876761,0.00013,2]
[338401939,1726587037835,-19789.33718628,0.00013,2]
[338401940,1726587037846,-24182.9404003,0.00013,2]
[338401941,1726587037857,-14377.7405,0.00013,2]
[338401942,1726587037880,-305.85,0.00013,2]
[338401943,1726587037903,-19489.86899283,0.00013,2]
[338401945,1726587037973,-601.26191456,0.00013,2]
[338401947,1726587037985,-3875.31277846,0.00013,2]
[338401949,1726587037996,-3027.52421988,0.00013,2]
[338401952,1726587038007,-23923.33231431,0.00013,2]
[338402153,1726587040229,-670603.92839179,0.00013,2]
[338402154,1726587040238,-3411917.9674655,0.00013,2]
[338402155,1726587040250,-922.21903469,0.00013,2]
[338402215,1726587040970,-422.38266748,0.00013,2]
[338402356,1726587042809,-25105.1193906,0.00013,2]
[338402358,1726587042820,-3478.33521042,0.00013,2]
[338402361,1726587042833,-6621.8855937,0.00013,2]
[338402411,1726587043447,-500.23429319,0.00013,2]
[338402413,1726587043458,-121241.61913951,0.00013,2]
[338402415,1726587043470,-2180.37715403,0.00013,2]
[338402417,1726587043481,-787.0,0.00013,2]
[338402442,1726587045586,-173.0437,0.000129,2]
[338402443,1726587045596,-101.4756248,0.00013,2]
[338402444,1726587045632,-195630.41124396,0.00013,2]
[338402445,1726587045646,-39726.31858931,0.00013,2]
[338402446,1726587045660,-80252.54449587,0.00013,2]
[338402447,1726587045684,-1206.09817827,0.00013,2]
[338402448,1726587045696,-4545.31242003,0.00013,2]
[338402449,1726587045710,-506.34561516,0.00013,2]
[338402450,1726587045737,-746101.24197383,0.00013,2]
[338402451,1726587045784,-539.53645481,0.00013,2]
[338402452,1726587045795,-390.67842279,0.00013,2]
[338402453,1726587045829,-2600.0,0.00013,2]
[338402454,1726587045876,-5999.60795184,0.00013,2]
[338402455,1726587045888,-2390.09999996,0.00013,2]
[338402456,1726587045900,-264.56933083,0.00013,2]
[338402458,1726587045927,-7344.72325914,0.00013,2]
[338402460,1726587045939,-306523.52493484,0.00013,2]
[338402843,1726587065143,500.0,0.000125,4]
[338402844,1726587067559,1000.0,0.000126,4]
[338402845,1726587168194,-2000.0,0.00013,15]
[338402846,1726587178946,181.83,0.00010959,2]
[338402847,1726587190022,-1500.0,0.000127,4]
[338402848,1726587190045,-2100.0,0.000128,4]
[338402849,1726587190070,-2600.0,0.000129,4]
[338402850,1726587208188,-250.0,0.00012659,2]
[338402851,1726587208211,-150.0,0.0001287,2]
[338402852,1726587208233,-150.0,0.00012899,2]
[338402853,1726587208256,-579.1755,0.000129,2]
[338402854,1726587208277,-479.0013,0.000129,2]
[338402855,1726587208300,-9991.8232,0.000129,2]
[338402856,1726587256070,13735.6891,0.00012559,2]
[338402857,1726587403684,167.55,0.00012607,2]
[338402858,1726587523802,1800.0,0.00015,90]
[338402859,1726587558233,1800.0,0.000142,60]
[338402860,1726587559827,160.2,0.00012537,2]
[338402861,1726587577952,1800.0,0.00014,30]
[338402862,1726587583093,1456.15,0.00012445,2]
[338402865,1726587644879,678.17,0.00010466,2]
[338402866,1726587681380,207.22,0.00010959,2]
[338402867,1726587706219,150.0,0.00012304,2]
[338402868,1726587706240,150.0,0.00012304,2]
[338402869,1726587706265,8592.76,0.00012304,2]
[338402870,1726587709991,313.43,0.00012402,2]
[338402871,1726587806115,150.0,0.00012306,2]
[338402872,1726588024134,2000.0,0.00012344,2]
[338402873,1726588029325,200.0,0.000125,4]
[338402874,1726588031439,500.0,0.000126,4]
[338402875,1726588038005,250.0,0.00012303,2]
[338402876,1726588129364,250.0,0.00012191,2]
[338402877,1726588132738,800.0,0.00012191,2]
[338402878,1726588133569,246.64,0.00012191,2]
[338402879,1726588142340,161.34,0.00012191,2]
[338402881,1726588180156,7363.32,0.00012227,2]
[338402883,1726588182525,764.2,0.00010309,2]
[338402884,1726588182571,764.2,0.00012573,2]
[338402897,1726588231704,-800.0,0.000127,4]
[338402898,1726588231713,-677.014,0.0001274,2]
[338402899,1726588231723,-186.13,0.0001274,2]
[338402900,1726588231732,-1000.0,0.000128,4]
[338402901,1726588231742,-57.71814192,0.00012822,2]
[338402902,1726588231754,-343.0571495,0.00012822,2]
[338402903,1726588231764,-88.9428545,0.0001287,2]
[338402904,1726588231776,-61.2898555,0.0001287,2]
[338402905,1726588231787,-238.4001446,0.0001287,2]
[338402906,1726588231806,-1601.38575,0.0001287,2]
[338402907,1726588231817,-551.9846954,0.0001287,2]
[338402908,1726588231826,-2391.7706,0.0001287,2]
[338402909,1726588231835,-2391.77059,0.0001287,2]
[338402910,1726588231845,-313.75738651,0.0001287,2]
[338402911,1726588231856,-1024.96350349,0.0001287,2]
[338402912,1726588231865,-329.5430587,0.0001287,2]
[338402913,1726588231876,-2062.2275313,0.0001287,2]
[338402914,1726588231886,-725.13041627,0.0001287,2]
[338402915,1726588231898,-613.59047373,0.0001287,2]
[338402916,1726588231907,-1338.72089,0.0001287,2]
[338402917,1726588231916,-47.68863627,0.0001287,2]
[338402918,1726588231927,-460.19652237,0.0001287,2]
[338402919,1726588231938,-335.08950845,0.0001287,2]
[338402920,1726588231949,-276.52,0.0001287,2]
[338402921,1726588231959,-219.22622291,0.0001287,2]
[338402922,1726588231969,-587.37189151,0.0001287,2]
[338402923,1726588231980,-751.34900849,0.0001287,2]
[338402924,1726588231989,-137.80248695,0.0001287,2]
[338402925,1726588232000,-2253.96811305,0.0001287,2]
[338402926,1726588232009,-852.18457326,0.0001287,2]
[338402927,1726588232033,-486.53631674,0.0001287,2]
[338402928,1726588232049,-2391.77059,0.0001287,2]
[338402929,1726588232059,-150.0,0.00012877,2]
[338402930,1726588232068,-290.46,0.0001289,2]
[338402931,1726588232078,-150.0,0.00012899,2]
[338402932,1726588232087,-14087.4711,0.000129,2]
[338402933,1726588232099,-1620.2565,0.000129,2]
[338402934,1726588232111,-3378.3425,0.000129,2]
[338402935,1726588232121,-1000.0,0.000129,2]
[338402936,1726588232131,-1607.998,0.000129,2]
[338402937,1726588232142,-172.8445,0.000129,2]
[338402938,1726588232152,-297.57,0.000129,2]
[338402939,1726588232163,-30295.5446,0.000129,2]
[338402940,1726588232173,-1391.9473,0.000129,2]
[338402941,1726588232183,-5321.02193251,0.000129,2]
[338402942,1726588232198,-475.33640045,0.000129,2]
[338402943,1726588232210,-6089.09666704,0.000129,2]
[338402944,1726588232220,-1428.13315155,0.000129,2]
[338402945,1726588232232,-290.16336359,0.000129,2]
[338402946,1726588232244,-827.93791736,0.000129,2]
[338402947,1726588232256,-382.31751455,0.000129,2]
[338402948,1726588232267,-6708.88506348,0.000129,2]
[338402949,1726588232371,-945.27510307,0.000129,2]
[338402950,1726588232383,-1255.5563864,0.000129,2]
[338402951,1726588232392,-500.0,0.000129,2]
[338402952,1726588232402,-892.8808,0.000129,2]
[338402953,1726588232411,-151.0330361,0.000129,2]
[338402954,1726588232421,-4513.4936,0.000129,2]
[338402955,1726588232430,-5864.95917579,0.000129,2]
[338402956,1726588232441,-666.3425544,0.000129,2]
[338402957,1726588232451,-312.4205569,0.000129,2]
[338402958,1726588232513,-2034.3771887,0.000129,2]
[338402959,1726588232524,-4603.03995499,0.000129,2]
[338402960,1726588232538,-846.08694448,0.000129,2]
[338402961,1726588232549,-702.93574009,0.000129,2]
[338402962,1726588232560,-250.0,0.000129,2]
[338402963,1726588232571,-752.76793986,0.000129,2]
[338402964,1726588232582,-401.44091038,0.000129,2]
[338402965,1726588232593,-9085.62253441,0.000129,2]
[338402966,1726588232602,-7484.75530543,0.000129,2]
[338402967,1726588232615,-15.24469457,0.000129,2]
[338402968,1726588232625,-374.5961781,0.000129,2]
[338402975,1726588237768,-232.0438219,0.000129,2]
[338402976,1726588237777,-1300.0,0.000129,4]
[338402977,1726588237788,-5368.69954235,0.000129,2]
[338402978,1726588237800,-1608.02385753,0.000129,2]
[338402979,1726588237811,-13984.97258338,0.000129,2]
[338402980,1726588237821,-1449.37872788,0.000129,2]
[338402981,1726588237832,-3102.36249577,0.000129,2]
[338402982,1726588237855,-415.00256431,0.000129,2]
[338402983,1726588237864,-175.32248016,0.000129,2]
[338402984,1726588237873,-551.56422209,0.000129,2]
[338402985,1726588237882,-153.36419613,0.000129,2]
[338402986,1726588237892,-499.99,0.00012973,2]
[338402987,1726588237902,-500.0,0.00012973,2]
[338402988,1726588237911,-422.44759378,0.00012973,2]
[338402989,1726588237921,-150.14,0.0001299,2]
[338402990,1726588237930,-150.14,0.0001299,2]
[338402991,1726588237940,-150.14,0.0001299,2]
[338402992,1726588237949,-150.14,0.0001299,2]
[338402993,1726588237958,-169.0686501,0.00012999,2]
[338402994,1726588237968,-500.0,0.00012999,2]
[338402995,1726588237978,-500.0,0.00012999,2]
[338402996,1726588237988,-477.57405775,0.00012999,2]
[338402997,1726588237998,-276.23699187,0.00013,2]
[338403018,1726588238210,-30237.93804003,0.00013,2]
[338403022,1726588238237,-50702.62269589,0.00013,2]
[338403024,1726588238248,-63491.59336379,0.00013,2]
[338403029,1726588238280,-553084.49711671,0.00013,2]
[338403031,1726588238292,-4335024.40704741,0.00013,2]
[338403033,1726588238302,-188266.9391257,0.00013,2]
[338403117,1726588240009,-1834.245,0.00013,2]
[338403118,1726588240023,-373.56117198,0.00013,2]
[338403119,1726588240037,-597.85,0.00013,2]
[338403120,1726588240049,-318.80676,0.00013,2]
[338403121,1726588240061,-5462.53963261,0.00013,2]
[338403122,1726588240070,-479.2213114,0.00013,2]
[338403123,1726588240082,-7.24677514,0.00013,2]
[338403124,1726588240091,-207.07611667,0.00013,2]
[338403125,1726588240101,-7351.23530722,0.00013,2]
[338403126,1726588240608,-37.43890685,0.00013,2]
[338403127,1726588240623,-3486.07225228,0.00013,2]
[338403128,1726588240632,-167.0,0.00013038,2]
[338403129,1726588240642,-422.61,0.00013096,2]
[338403130,1726588240651,-273.76,0.00013115,2]
[338403131,1726588240660,-20961.69598319,0.00013122,2]
[338403132,1726588240670,-10000.0,0.00013145,2]
[338403133,1726588240679,-753.08,0.000132,2]
[338403134,1726588240689,-422.61,0.000132,2]
[338403135,1726588240699,-422.61,0.000132,2]
[338403136,1726588240709,-753.08,0.000132,2]
[338403137,1726588240719,-422.61,0.000132,2]
[338403138,1726588240729,-582.47,0.000132,2]
[338403139,1726588240740,-422.61,0.000132,2]
[338403140,1726588240751,-422.61,0.000132,2]
[338403141,1726588240762,-422.61,0.000132,2]
[338403142,1726588240771,-422.61,0.000132,2]
[338403143,1726588240781,-422.61,0.000132,2]
[338403144,1726588240792,-422.61,0.000132,2]
[338403145,1726588240801,-422.61,0.000132,2]
[338403146,1726588240811,-422.61,0.000132,2]
[338403147,1726588240820,-422.61,0.000132,2]
[338403148,1726588240830,-167.0,0.00013228,2]
[338403149,1726588240840,-20961.69598319,0.00013344,2]
[338403150,1726588240849,-855.6,0.0001337,2]
[338403151,1726588240859,-340.74,0.0001337,2]
[338403152,1726588240869,-150.0,0.0001337,2]
[338403153,1726588240879,-150.0,0.0001337,2]
[338403154,1726588240888,-150.0,0.0001337,2]
[338403155,1726588240897,-400.77529143,0.00013409,2]
[338403156,1726588240908,-200.0,0.00013534,2]
[338403157,1726588240918,-20961.69598319,0.00013567,2]
[338403158,1726588240927,-151.21,0.0001359,2]
[338403159,1726588240937,-279.99,0.0001359,2]
[338403160,1726588240946,-150.0,0.0001359,2]
[338403161,1726588240956,-150.0,0.0001359,2]
[338403162,1726588240965,-150.0,0.0001359,2]
[338403163,1726588240975,-564.51,0.00013699,2]
[338403164,1726588240985,-150.01,0.00013699,2]
[338403165,1726588240995,-2751.0,0.00013699,2]
[338403166,1726588241005,-200.0,0.00013699,2]
[338403167,1726588241015,-5532.80545035,0.000137,2]
[338403168,1726588241025,-800.0,0.00013715,2]
[338403169,1726588241035,-500.0,0.00013731,2]
[338403170,1726588241046,-500.0,0.00013731,2]
[338403171,1726588241055,-500.0,0.00013731,2]
[338403172,1726588241064,-500.0,0.00013731,2]
[338403173,1726588241074,-500.0,0.00013731,2]
[338403174,1726588241083,-391.531,0.00013731,2]
[338403175,1726588241092,-500.0,0.00013731,2]
[338403176,1726588241102,-500.0,0.00013731,2]
[338403177,1726588241111,-500.0,0.00013731,2]
[338403178,1726588241121,-520.5563,0.00013731,2]
[338403179,1726588241131,-20961.69598319,0.00013789,2]
[338403180,1726588241140,-1067.14701504,0.00013799,2]
[338403181,1726588241149,-200.0,0.000138,2]
[338403182,1726588241158,-364548.939769,0.000138,2]
[338403183,1726588241168,-810.0,0.0001385,2]
[338403184,1726588241178,-932.0,0.0001385,2]
[338403186,1726588241187,-150.0,0.0001385,2]
[338403187,1726588241197,-200.0,0.000139,5]
[338403188,1726588241207,-134495.303625,0.000139,2]
[338403189,1726588241216,-1449.37872786,0.000139,2]
[338403190,1726588241225,-3517.36506008,0.000139,2]
[338403191,1726588241235,-551.56422208,0.000139,2]
[338403193,1726588241244,-150.94,0.00013918,2]
[338403196,1726588241255,-1000.0,0.00014,2]
[338403198,1726588241288,-5001.7242225,0.00014,2]
[338403200,1726588241297,-2126.71860842,0.00014,5]
[338403201,1726588241306,-255.0,0.00014008,2]
[338403202,1726588241316,-20961.69598319,0.00014011,2]
[338403203,1726588241326,-292.08,0.00014161,2]
[338403204,1726588241335,-160.0,0.000142,2]
[338403205,1726588241345,-20961.69598319,0.00014233,2]
[338403206,1726588241355,-206.069614,0.00014259,2]
[338403207,1726588241366,-373.21065166,0.00014342,2]
[338403208,1726588241376,-5026.65871,0.00014373,2]
[338403209,1726588241387,-564.51,0.00014384,2]
[338403210,1726588241396,-816.98,0.000144,2]
[338403211,1726588241406,-150.0,0.00014412,2]
[338403212,1726588241416,-150.0,0.00014412,2]
[338403213,1726588241426,-150.0,0.00014412,2]
[338403214,1726588241436,-150.0,0.00014412,2]
[338403215,1726588241446,-150.0,0.00014412,2]
[338403216,1726588241455,-150.0,0.00014412,2]
[338403217,1726588241465,-363.67,0.00014412,2]
[338403218,1726588241475,-150.0,0.00014412,2]
[338403219,1726588241485,-150.0,0.00014412,2]
[338403220,1726588241495,-150.0,0.00014412,2]
[338403221,1726588241505,-206.069614,0.00014437,2]
[338403222,1726588241515,-20961.69598319,0.00014456,2]
[338403223,1726588241525,-500.0,0.00014473,2]
[338403224,1726588241536,-150.14,0.0001449,2]
[338403225,1726588241547,-275523.44765596,0.000145,2]
[338403226,1726588241576,-600.94985003,0.000145,2]
[338403227,1726588241892,-184.18222609,0.000128,2]
[338403228,1726588241902,-171.47320082,0.000145,2]
[338403246,1726588242757,-445.70504057,0.00013145,2]
[338403247,1726588242777,-1605.35180376,0.00013145,2]
[338403248,1726588242789,-1000.0,0.00013145,2]
[338403250,1726588242820,-610.20934057,0.00013145,2]
[338403252,1726588242833,-4097.4824312,0.00013145,2]
[338403254,1726588242842,-29706.2875708,0.000145,2]
[338403255,1726588242854,-11923.83054503,0.000145,2]
[338403295,1726588243634,-6160.50534124,0.000145,2]
[338403296,1726588243646,-1011.21766666,0.000145,2]
[338403297,1726588243658,-10034.53822551,0.000145,2]
[338403298,1726588243671,-267.9483656,0.000145,2]
[338403299,1726588243819,-4078.9714258,0.000145,2]
[338403300,1726588243831,-38532.7306735,0.000145,2]
[338403301,1726588243843,-8679.59506081,0.000145,2]
[338403304,1726588245794,-1216.07779227,0.000145,2]
[338403305,1726588245807,-12221.4,0.000145,2]
[338403306,1726588246007,-3648.9525255,0.000145,2]
[338403307,1726588246018,-431.22961645,0.000145,2]
[338403308,1726588246030,-1294.63954852,0.000145,2]
[338403311,1726588246065,-708.1,0.000145,2]
[338403313,1726588246077,-2660.46376001,0.000145,2]
[338403323,1726588246197,-635.09610719,0.000145,2]
[338403324,1726588246268,-275.66715497,0.000145,2]
[338403325,1726588246280,-29999.84363995,0.000145,2]
[338403326,1726588246292,-6751.79144901,0.000145,2]
[338403327,1726588261880,1389.0,0.000108,5]
[338403328,1726588283075,173.84,0.00010959,2]
[338403329,1726588422198,1614.40183049,0.00012,2]
[338403330,1726588563080,1050.0,0.00011,2]
[338403331,1726588822238,745.48,0.00011616,2]
[338403332,1726588980069,1225.0,0.00012,2]
[338403333,1726589298699,1949.186769,0.00012567,2]
[338403334,1726589348899,762.63,0.00010961,2]
[338403335,1726589405414,162.78,0.00012621,2]
[338403367,1726589431981,-796.0,0.00012631,2]
[338403369,1726589431993,-796.0,0.00012631,2]
[338403371,1726589432003,-206.4631329,0.00012631,2]
[338403372,1726589432012,-2409.42503778,0.00012835,2]
[338403373,1726589432024,-1300.0,0.00012835,2]
[338403374,1726589432036,-1928.20760668,0.00012835,2]
[338403375,1726589432048,-1371.79239332,0.00012835,2]
[338403376,1726589432076,-1646.57731229,0.00012835,2]
[338403377,1726589432087,-468.35778133,0.00012835,2]
[338403378,1726589432100,-119.2498686,0.00012835,2]
[338403379,1726589432109,-157.95,0.00012835,2]
[338403380,1726589432119,-200.0,0.00012861,2]
[338403381,1726589432128,-478.18,0.00012861,2]
[338403382,1726589432137,-250.0,0.00012877,2]
[338403383,1726589432147,-222.7304,0.000129,2]
[338403384,1726589432156,-3515.1513,0.000129,2]
[338403385,1726589432166,-250.0,0.00012978,2]
[338403386,1726589432177,-250.0,0.00013055,2]
[338403387,1726589432187,-173.76,0.00013069,2]
[338403388,1726589432198,-173.76,0.00013082,2]
[338403389,1726589432208,-480.0,0.00013093,2]
[338403390,1726589432219,-173.76,0.00013095,2]
[338403391,1726589432229,-175.24,0.00013105,2]
[338403392,1726589432240,-2526.42,0.00013105,2]
[338403393,1726589432251,-499.99,0.00013105,2]
[338403394,1726589432261,-885.9,0.00013105,2]
[338403395,1726589432271,-150.0,0.00013107,2]
[338403396,1726589432280,-173.76,0.00013109,2]
[338403397,1726589432289,-173.76,0.00013122,2]
[338403398,1726589432298,-173.76,0.00013135,2]
[338403399,1726589432307,-796.0,0.0001314,2]
[338403400,1726589432316,-762.63,0.00013225,2]
[338403401,1726589432325,-520.0,0.00013243,2]
[338403402,1726589432335,-167.0,0.0001348,2]
[338403403,1726589432344,-5582.88,0.00013534,2]
[338403404,1726589432354,-252.88,0.00013534,2]
[338403405,1726589432364,-304.57,0.0001359,2]
[338403406,1726589432373,-164.77,0.00013647,2]
[338403407,1726589432382,-338.7,0.00013699,2]
[338403408,1726589432391,-150.01,0.00013699,2]
[338403409,1726589432400,-285.84,0.00013705,2]
[338403410,1726589432409,-150.0,0.00013831,2]
[338403411,1726589432419,-796.0,0.00013831,2]
[338403412,1726589432428,-932.0,0.00014,2]
[338403413,1726589432437,-394.7977753,0.00014155,2]
[338403414,1726589432446,-167.0,0.00014236,2]
[338403415,1726589432455,-338.7,0.00014384,2]
[338403416,1726589432465,-4990.52727702,0.0001439,2]
[338403417,1726589432474,-152.3688425,0.00014393,2]
[338403418,1726589432483,-576.532,0.00014399,2]
[338403419,1726589432493,-186.13,0.00014399,2]
[338403420,1726589432503,-1168.1644,0.000144,2]
[338403421,1726589432512,-6779.8066,0.000144,2]
[338403422,1726589432522,-500.0,0.000144,2]
[338403423,1726589432531,-46471.4175,0.000144,2]
[338403424,1726589432541,-297.9512,0.000144,2]
[338403425,1726589432550,-735.28,0.000144,2]
[338403426,1726589432559,-5241.4123,0.000144,2]
[338403427,1726589432568,-25146.9783,0.000144,2]
[338403428,1726589432577,-326.87461112,0.000144,2]
[338403429,1726589432587,-4990.52727699,0.00014447,2]
[338403430,1726589432596,-173.83,0.00014465,2]
[338403431,1726589432610,-1000.0,0.0001447,2]
[338403432,1726589432620,-718.40512825,0.0001447,2]
[338403433,1726589432629,-500.0,0.00014473,2]
[338403434,1726589432638,-150.11,0.0001448,3]
[338403435,1726589432647,-450.34,0.0001448,3]
[338403436,1726589432657,-152.6,0.0001448,2]
[338403437,1726589432666,-164177.218946,0.0001449,2]
[338403438,1726589432675,-18871.6980653,0.0001449,2]
[338403439,1726589432685,-133305.3210553,0.0001449,2]
[338403440,1726589432708,-916.23223941,0.0001449,2]
[338403441,1726589432719,-1174.76,0.0001449,2]
[338403442,1726589432749,-804.71155704,0.0001449,2]
[338403443,1726589432761,-4118.27119374,0.0001449,2]
[338403444,1726589432772,-12244.0,0.0001449,2]
[338403445,1726589432784,-3377.03584135,0.0001449,2]
[338403451,1726589437912,-1523.24306261,0.0001449,2]
[338403452,1726589437924,-47865.87708065,0.0001449,2]
[338403453,1726589437935,-1286.20200593,0.0001449,2]
[338403454,1726589437946,-3962.55749776,0.0001449,2]
[338403455,1726589437957,-3110.01716113,0.0001449,2]
[338403456,1726589437969,-799.5914014,0.0001449,2]
[338403457,1726589437999,-1893.1272692,0.0001449,2]
[338403458,1726589438011,-659.75132017,0.0001449,2]
[338403459,1726589438024,-741.90046472,0.0001449,2]
[338403460,1726589438038,-597.24,0.0001449,2]
[338403461,1726589438050,-471.39155754,0.0001449,2]
[338403462,1726589438062,-765.41975306,0.0001449,2]
[338403463,1726589438073,-410.70213987,0.0001449,2]
[338403464,1726589438085,-284.7715908,0.0001449,2]
[338403465,1726589438097,-540.7737534,0.0001449,2]
[338403466,1726589438113,-22590.85096767,0.0001449,2]
[338403467,1726589438124,-6556.25108725,0.0001449,2]
[338403468,1726589438133,-18871.6980653,0.00014493,2]
[338403469,1726589438142,-11248.54,0.000145,2]
[338403470,1726589438152,-19852.5678653,0.000145,2]
[338403471,1726589438163,-433.3337185,0.000145,2]
[338403472,1726589438174,-5740.77834692,0.000145,2]
[338403473,1726589438186,-861.31394097,0.000145,2]
[338403474,1726589438197,-8323.234,0.000145,2]
[338403475,1726589438225,-2757.58727979,0.000145,2]
[338403477,1726589438236,-500.0,0.000145,2]
[338403479,1726589438248,-300.005,0.000145,2]
[338403481,1726589438259,-29561.64748557,0.000145,2]
[338403483,1726589438285,-3000.60438524,0.000145,2]
[338403485,1726589438296,-1003.07311994,0.000145,2]
[338403487,1726589438306,-475.24399367,0.000145,2]
[338403488,1726589438317,-69959.40566592,0.000145,2]
[338403489,1726589438332,-72301.57589562,0.000145,2]
[338403490,1726589438343,-612.18240239,0.000145,2]
[338403491,1726589438356,-313.27,0.000145,2]
[338403492,1726589438367,-254.99999,0.000145,2]
[338403493,1726589438378,-888.51999758,0.000145,2]
[338403510,1726589439966,-248459.50973696,0.000145,2]
[338403511,1726589439977,-2000.0,0.000145,2]
[338403512,1726589439994,-200.0,0.000145,2]
[338403513,1726589440005,-2000.0,0.000145,2]
[338403514,1726589440014,-200.0,0.000145,2]
[338403515,1726589440023,-2000.0,0.000145,2]
[338403516,1726589440032,-200.0,0.000145,2]
[338403517,1726589440043,-2671.58594,0.000145,2]
[338403518,1726589440054,-2000.0,0.000145,2]
[338403519,1726589440065,-200.0,0.000145,2]
[338403520,1726589440075,-4990.52727699,0.00014503,2]
[338403521,1726589440084,-4603.29,0.00014521,2]
[338403522,1726589440093,-278.948759,0.00014521,2]
[338403523,1726589440104,-176.0,0.00014521,2]
[338403524,1726589440113,-326.87461108,0.00014525,2]
[338403525,1726589440123,-12629.016842,0.0001455,2]
[338403526,1726589440132,-796.0,0.00014559,2]
[338403527,1726589440141,-4990.52727699,0.0001456,2]
[338403528,1726589440150,-25258.033684,0.00014589,2]
[338403529,1726589440160,-18871.6980653,0.00014589,2]
[338403530,1726589440169,-1106.1864591,0.0001459,2]
[338403531,1726589440179,-29405.04597686,0.00014599,2]
[338403532,1726589440189,-152.6,0.00014607,2]
[338403533,1726589440199,-206.069614,0.00014615,2]
[338403534,1726589440209,-4990.52727699,0.00014617,2]
[338403535,1726589440218,-12629.016842,0.00014637,2]
[338403536,1726589440227,-18871.6980653,0.00014637,2]
[338403537,1726589440238,-2000.0,0.00014645,2]
[338403538,1726589440247,-200.0,0.00014645,2]
[338403539,1726589440257,-2000.0,0.00014645,2]
[338403540,1726589440266,-200.0,0.00014645,2]
[338403541,1726589440275,-200.0,0.00014645,2]
[338403542,1726589440285,-200.0,0.00014645,2]
[338403544,1726589440294,-152.36884248,0.00014647,2]
[338403545,1726589440303,-326.87461108,0.0001465,2]
[338403546,1726589440312,-12629.016842,0.00014658,2]
[338403547,1726589440321,-18871.6980653,0.00014658,2]
[338403548,1726589440330,-324.3282733,0.00014668,2]
[338403549,1726589440339,-8700.01466801,0.00014668,2]
[338403550,1726589440348,-25258.033684,0.00014668,2]
[338403551,1726589440359,-2131.21978696,0.00014668,2]
[338403553,1726589440398,-860.59067834,0.00014668,2]
[338403556,1726589440408,-1224.7762655,0.00014668,2]
[338403561,1726589440534,-615.845081,0.000144,2]
[338403562,1726589440556,-45.904919,0.000144,2]
[338403563,1726589440566,-14655.1113345,0.00014668,2]
[338403564,1726589440575,-4990.52727699,0.00014673,2]
[338403565,1726589440584,-8640.87059534,0.00014678,2]
[338403566,1726589440604,-530.86535505,0.00014678,2]
[338403567,1726589440616,-714.51563838,0.00014678,2]
[338403576,1726589442923,-1377.74172289,0.00014678,2]
[338403582,1726589443294,-4675.74706937,0.00014678,2]
[338403584,1726589443310,-400.30481951,0.00014678,2]
[338403587,1726589443323,-500.0,0.00014678,2]
[338403589,1726589443336,-254.90722027,0.00014678,2]
[338403592,1726589443350,-411.7493109,0.00014678,2]
[338403595,1726589443374,-5350.19999999,0.00014678,2]
[338403597,1726589443386,-627.2943203,0.00014678,2]
[338403600,1726589443401,-14402.854474,0.00014678,2]
[338403602,1726589443412,-4617.73734824,0.00014678,2]
[338403614,1726589445930,-1024.09315708,0.00014384,2]